Workbook

Sheet Calc
A1: Calculations for pressurized flow in circular cross section pipes
A2: © D. Koutsoyiannis, 2008-2017
A3: http://www.itia.ntua.gr/el/softinfo/32/
A5: Method A: Based on the Darcy-Weisbach-Colebrook-White equations
A6: The relevant equations are (see any of hydraulics books)
A12: Variant 1: Use the Excel solver (note: you must have installed the Solver Add On in Excel)
A13: Give the values of the three of the yellow cells and run the solver to find the fourth one
A14: The solver should minimize the error in eqn (4) (cell in red font) by changing the cell whose value we are looking for
G15: ε (m) | H15: D (m) | I15: Q (m³/s) | J15: J (-) | K15: f (-) | L15: Re (-) | M15: V (m/s) | O15: eqn (4) left | P15: eqn (4) right | Q15: eqn (4) square error
G16: 0.001 | H16: 0.2999999001 | I16: 0.1 | J16: =F23 -> 0.009279079599 | K16: =J16*H16*2*9.81/M16^2 -> 0.02728910024 | L16: =M16*H16/0.0000011 -> 385830.2935 | M16: =IF(H16=0,0.000001,4*I16/PI()/H16^2) -> 1.414711547 | O16: =1/K16^0.5 -> 6.0534839 | P16: =-2*LOG(G16/H16/3.7+2.51/L16/K16^0.5) -> 6.0534839 | Q16: =(O16-P16)^2 -> 2.555909333e-28
A17: Variant 2: Use the VBA functions contained in this file
A18: See/Edit the VBA functions from the menu Developer - Visual Basic. You must have enabled macros to use them
C20: Simple function call | H20: Detailed function call - all intermediate quantities are shown
C21: The single output is the required quantity | H21: Note that the function works as an array function and needs a range of 2 x 7 cells
C22: ε (m) | D22: D (m) | E22: Q (m³/s) | F22: J (-)
A23: Problem 1: Find J for given Q, D | C23: 0.001 | D23: 0.3 | E23: 0.1 | F23: =Pipe_J(C23,D23,E23) -> 0.009279079599 | H23: =Pipe_J(C23,D23,E23,TRUE) -> ε (m) | I23: D (m) | J23: Q (m³/s) | K23: J (-) | L23: f (-) | M23: Re (-) | N23: V (m/s)
H24: 0.001 | I24: 0.3 | J24: 0.1 | K24: 0.009279079599 | L24: 0.02728909957 | M24: 385830.491 | N24: 1.4147118
A26: Problem 2: Find Q for given J, D | C26: =C23 -> 0.001 | D26: =D23 -> 0.3 | E26: =Pipe_Q(C26,D26,F26) -> 0.1000000037 | F26: 0.009279079599 | H26: =Pipe_Q(C26,D26,F26,TRUE) -> ε (m) | I26: D (m) | J26: Q (m³/s) | K26: J (-) | L26: f (-) | M26: Re (-) | N26: V (m/s)
H27: 0.001 | I27: 0.3 | J27: 0.1000000037 | K27: 0.009279079599 | L27: 0.02728909757 | M27: 385830.5051 | N27: 1.414711852
A29: Problem 3: Find D for given Q, J | C29: =C23 -> 0.001 | D29: =Pipe_D(C29,E29,F29) -> 0.299999775 | E29: =E23 -> 0.1 | F29: 0.009279079599 | H29: =Pipe_D(C29,E29,F29,TRUE) -> ε (m) | I29: D (m) | J29: Q (m³/s) | K29: J (-) | L29: f (-) | M29: Re (-) | N29: V (m/s)
H30: 0.001 | I30: 0.299999775 | J30: 0.0999998052 | K30: 0.009279079599 | L30: 0.02728910357 | M30: 385830.0287 | N30: 1.414711166
A32: Variant 3: For romantic guys who like tradition
A33: Use the Moody-Rouse graph which you can find in the shet "Moody" in this file
A34: Problem 1: Find J for given Q, D
A37: Problem 2: Find Q for given J, D
A40: Problem 3: Find D for given Q, J
A46: Method B: Based on the generalized Manning equation
A47: Reference: D. Koutsoyiannis, A power-law approximation of the turbulent flow friction factor useful for the design and simulation of urban water networks, Urban Water Journal, 5 (2), 117–115, 2008.
A48: The method can perform with typical spreadsheet calculations or in calculators based on the following equations:
C50: V = (1/N) R (1+β)/2 J (1+γ)/2 (5)
A52: Combined with (2), (5) results ineach of the following:
A57: The parameters β, γ, Ν are determined in terms of a dimensionless roughness:
A61: For typical ranges of diameters and velocities, they can be calculated as follows (for non-typical ranges see the above reference)
A65: Note: β and γ are dimensionless while N is appropriate for the SI system (m, s)
A66: Typical values of parameters
A67: ε (m) | B67: ε* | C67: β | D67: γ | E67: N [SI]
A68: 0.001 | B68: =A68/0.00005 -> 20 | C68: =0.3+0.0005*B68+0.02/(1+6.8*B68) -> 0.3101459854 | D68: =0.096/(1+0.31*B68) -> 0.01333333333 | E68: =0.00687*(1+1.6*B68)^0.16 -> 0.01202040132
A69: 0.0001 | B69: =A69/0.00005 -> 2 | C69: =0.3+0.0005*B69+0.02/(1+6.8*B69) -> 0.302369863 | D69: =0.096/(1+0.31*B69) -> 0.05925925926 | E69: =0.00687*(1+1.6*B69)^0.16 -> 0.008643241018
A72: Note: The error with respect to the DWCW method is also given for comparison
C73: ε (m) | D73: ε* | E73: β | F73: γ | G73: N [SI] | H73: D (m) | I73: Q (m³/s) | J73: J (-) | L73: % Difference from DWCW
A74: Problem 1: Find J for given Q, D | C74: =C23 -> 0.001 | D74: =C74/0.00005 -> 20 | E74: =0.3+0.0005*D74+0.02/(1+6.8*D74) -> 0.3101459854 | F74: =0.096/(1+0.31*D74) -> 0.01333333333 | G74: =0.00687*(1+1.6*D74)^0.16 -> 0.01202040132 | H74: =D23 -> 0.3 | I74: =E23 -> 0.1 | J74: =(4^(3+E74)*G74^2*I74^2/PI()^2/H74^(5+E74))^(1/(1+F74)) -> 0.009165962619 | L74: =(J74-F23)/F23 -> -0.01219053874
A76: Problem 2: Find Q for given J, D | C76: =C23 -> 0.001 | D76: =C76/0.00005 -> 20 | E76: =0.3+0.0005*D76+0.02/(1+6.8*D76) -> 0.3101459854 | F76: =0.096/(1+0.31*D76) -> 0.01333333333 | G76: =0.00687*(1+1.6*D76)^0.16 -> 0.01202040132 | H76: =D23 -> 0.3 | I76: =PI()*H76^((5+E76)/2)*J76^((1+F76)/2)/2^(3+E76)/G76 -> 0.1006233846 | J76: =F23 -> 0.009279079599 | L76: =(I76-E23)/E23 -> 0.006233846131
A78: Problem 3: Find D for given Q, J | C78: =C23 -> 0.001 | D78: =C78/0.00005 -> 20 | E78: =0.3+0.0005*D78+0.02/(1+6.8*D78) -> 0.3101459854 | F78: =0.096/(1+0.31*D78) -> 0.01333333333 | G78: =0.00687*(1+1.6*D78)^0.16 -> 0.01202040132 | H78: =(4^(3+E78)*G78^2*I78^2/PI()^2/J78^(1+F78))^(1/(5+E78)) -> 0.2992986375 | I78: =E23 -> 0.1 | J78: =F23 -> 0.009279079599 | L78: =(H78-D23)/D23 -> -0.002337875046

Sheet Moody

Sheet Sheet3
